Cogmind - Beta 12 @@@ ROGUE MODE // 2023.05.25 @ 19:04:55 Player: deadnoob Result: Destroyed by Y-45 Defender with Heavy Assault Rifle Performance ------------- Evolutions (1) 500 Regions Visited (5) 1000 Robots Destroyed (59) 295 Value Destroyed (1602) 1602 Prototype IDs (4) 80 Alien Tech Used (0) 0 Bonus (80) 80 TOTAL SCORE: 3557 Bonus ------- Entered Garrisons 200 Friendly Fire -120 Cogmind --------- Core Integrity 0/400 Matter 256/300 Energy 262/265 System Corruption 5% Temperature Cool (27) Movement Treading (240) Ox1 Location -9/Garrison Parts ------- > --- POWER (1) -------- Improved Ion Engine > --- PROPULSION (3) --- Light Treads Light Treads Light Treads > --- UTILITY (3) ------ Improved Heat Sink Huge Storage Unit Light Armor Plating > --- WEAPON (2) ------- Advanced Beam Cannon Improved Assault Rifle > --- INVENTORY (25) --- Improved Ion Engine Faulty Heavy Ion Engine Faulty Heavy Ion Engine Improved Flight Unit Improved Flight Unit Medium Storage Unit Terrain Scanner Light Armor Plating Drone Bay (2/2) Bomb Drone Bay (16/16) Improved Medium Laser Light EM Pulse Cannon Light EM Pulse Cannon Advanced Beam Cannon Advanced Beam Cannon Advanced Beam Cannon Light Assault Rifle Light Assault Rifle Heavy Assault Rifle Autogun Improved Assault Rifle Mining Claw Peak State ------------ > --- POWER ------------ Light Angular Momentum Engine > --- PROPULSION ------- Light Treads Light Treads > --- UTILITY ---------- Huge Storage Unit Bomb Drone Bay > --- WEAPON ----------- Assault Rifle Assault Rifle > --- INVENTORY -------- Ion Engine Ion Engine Light Treads Heat Sink Medium Storage Unit Terrain Scanner Seismic Detector Tractor Beam Assault Rifle Assault Rifle Light Assault Rifle Light Assault Rifle Mining Laser Mining Claw [Rating: 25] Favorites ----------- Power Improved Ion Engine Engine Improved Ion Engine Propulsion Light Treads Treads Light Treads Leg Aluminum Leg Utility Huge Storage Unit Device Improved Heat Sink Storage Huge Storage Unit Protection Light Armor Plating Weapon Assault Rifle Energy Gun Medium Laser Energy Cannon Advanced Beam Cannon Ballistic Gun Assault Rifle Build | -11 -10 -10 -9 -9 -9 ------- Run | Jun Mat Min Mat Sto Gar Slots Evolved 2 | . . . 2 . . Power . | . . . . . . Propulsion 1 | . . . 1 . . Utility 1 | . . . 1 . . Weapon . | . . . . . . Parts Attached 58 | 1 9 12 22 12 2 Power 5 | . 1 1 3 . . Engine 5 | . 1 1 3 . . Core . | . . . . . . Reactor . | . . . . . . Propulsion 24 | . 3 5 7 7 2 Treads 20 | . . 4 7 7 2 Leg 4 | . 3 1 . . . Wheel . | . . . . . . Hover . | . . . . . . Flight . | . . . . . . Utility 14 | . 2 4 6 2 . Device 10 | . 1 3 6 . . Storage 2 | . 1 1 . . . Processor . | . . . . . . Hackware . | . . . . . . Protection 2 | . . . . 2 . Artifact . | . . . . . . Weapon 15 | 1 3 2 6 3 . Energy Gun 3 | 1 1 . . 1 . Energy Cannon 1 | . . . . 1 . Ballistic Gun 11 | . 2 2 6 1 . Ballistic Cannon . | . . . . . . Launcher . | . . . . . . Special Weapon . | . . . . . . Impact Weapon . | . . . . . . Slashing Weapon . | . . . . . . Piercing Weapon . | . . . . . . Special Melee Weapon . | . . . . . . Unidentified Prototypes 4 | . . . 2 2 . Parts Lost 18 | . . 3 10 5 . Power 2 | . . . 2 . . Propulsion 9 | . . 1 4 4 . Utility 3 | . . . 2 1 . Weapon 4 | . . 2 2 . . Highest Loss Streak 7 | . . 2 7 4 . To Critical Strikes . | . . . . . . Average Slot Usage (%) 96 | . 84 99 92 97 . Engine 10 | . 8 14 5 11 . Treads 26 | . . 23 32 31 . Leg 3 | . 27 4 . . . Device 15 | . 5 13 21 17 . Storage 12 | . 14 14 11 11 . Protection 1 | . . . . 4 . Energy Gun 3 | . 14 6 . . . Energy Cannon 3 | . . . . 9 . Ballistic Gun 17 | . 13 21 22 12 . Naked Turns . | . . . . . . Heaviest Build 98 | 13 20 94 96 98 . Greatest Support 60 | 20 20 40 60 60 . Greatest Overweight (x) 4 | . 4 4 2 4 . Average Overweight (x) 1 | . . 1 1 1 . Largest Inventory Capacity 25 | 8 10 25 25 25 25 Average Capacity 23 | 8 8 23 25 25 25 Most Carried 25 | 6 9 15 19 25 24 Average Carried 16 | 5 7 13 12 23 23 Final Capacity 25 | 8 10 25 25 25 25 Final Carried 25 | 3 9 15 19 25 23 Class Distribution -------------------- 53% | Scavenger-Mutant 46% | Mutant Dominant Class ---------------- Mutant | -10/Materials Mutant | -10/Mines Scavenger-Mutant | -9/Materials Scavenger-Mutant | -9/Storage Scavenger-Mutant | -9/Garrison Resources | -11 -10 -10 -9 -9 -9 ----------- Run | Jun Mat Min Mat Sto Gar Matter Collected 1399 | 200 107 258 504 330 . Remotely 306 | . . . 306 . . Salvage Created 2255 | . 107 376 669 1103 . Parts 136 | . 6 21 44 65 . Haulers Intercepted 5 | . 2 . 1 2 . Recyclers Shooed . | . . . . . . Parts Field Recycled . | . . . . . . Retrieved Matter . | . . . . . . Parts Self-Destructed . | . . . . . . Prevented . | . . . . . . Kills | -11 -10 -10 -9 -9 -9 ------- Run | Jun Mat Min Mat Sto Gar Combat Hostiles Destroyed 47 | . . 12 13 22 . Guns 34 | . . 11 13 10 . Cannons 12 | . . . . 12 . Classes Destroyed 11 | . 1 3 3 4 . Worker 2 | . . . 2 . . Builder 1 | . . . . 1 . Hauler 5 | . 2 . 1 2 . Recycler 1 | . . 1 . . . Operator 1 | . . . . 1 . Watcher 1 | . . . . 1 . Swarmer 10 | . . 10 . . . Grunt 26 | . . 2 9 15 . Brawler 1 | . . . 1 . . Duelist 1 | . . . . 1 . Sentry 9 | . . . 3 6 . Thug 1 | . . 1 . . . Best Kill Streak 7 | . 1 7 4 6 . Combat Bots Only 6 | . . 6 3 4 . Max Kills in Single Turn 2 | . 1 2 2 1 . Gunslinging 1 | . . 1 1 . . Exploded . | . . . . . . Melee . | . . . . . . Uniques/NPCs Destroyed . | . . . . . . Combat | -11 -10 -10 -9 -9 -9 -------- Run | Jun Mat Min Mat Sto Gar Damage Taken 3448 | . 24 789 1230 1341 64 Core 557 | . . 155 234 121 47 Absorbed by Shields . | . . . . . . Core Remaining (%) 69 | 100 . 38 . . . Volleys Fired 161 | . 11 33 54 61 2 Largest 2 | . 2 2 2 2 2 Hottest 91 | . 70 70 46 91 91 Shots Fired 322 | . 22 66 106 124 4 Gun 261 | . 22 66 106 65 2 Cannon 61 | . . . . 59 2 Launcher . | . . . . . . Special . | . . . . . . Kinetic 235 | . 11 51 106 65 2 Thermal 87 | . 11 15 . 59 2 Explosive . | . . . . . . Electromagnetic . | . . . . . . Robot Hit Streak 18 | . 5 6 9 18 4 Robot Miss Streak 6 | . 6 3 5 5 . Penetration Max . | . . . . . . Secondary Targets 9 | . . 5 4 . . Max Gunslinging Chain 1 | . . 1 1 . . Shots Hit Robots 219 | . 13 39 77 86 4 Core Hits 86 | . 5 15 30 36 . Critical Kills . | . . . . . . Critical Parts Destroyed 1 | . . . 1 . . Critical Strikes 3 | . 1 1 1 . . Burn 2 | . 1 1 . . . Destroy 1 | . . . 1 . . Melee Attacks . | . . . . . . Impact . | . . . . . . Slashing . | . . . . . . Piercing . | . . . . . . Sneak Attacks . | . . . . . . Combat Hostiles . | . . . . . . Follow-up Attacks . | . . . . . . Damage Inflicted 3525 | . 160 549 1060 1686 70 Guns 2394 | . 158 529 1059 619 29 Cannons 1104 | . . . . 1063 41 Explosions . | . . . . . . Melee . | . . . . . . Ramming 27 | . 2 20 1 4 . Kinetic 2180 | . 60 413 1059 619 29 Thermal 1318 | . 98 116 . 1063 41 Explosive . | . . . . . . Electromagnetic . | . . . . . . Impact . | . . . . . . Slashing . | . . . . . . Piercing . | . . . . . . Highest Corruption 5 | . . . 4 5 5 Average Corruption 4 | . . . 4 4 5 Corruption Purged . | . . . . . . Corruption Blocked . | . . . . . . Effects 38 | . . . 10 28 . Message Errors 9 | . . . 5 4 . Matter Fused 8 | . . . 1 7 . Heat Flow Errors 5 | . . . 1 4 . Energy Discharges 5 | . . . 3 2 . Parts Rejected 1 | . . . . 1 . Data Loss (minor) 6 | . . . . 6 . Data Loss (major) 1 | . . . . 1 . Misfires 3 | . . . . 3 . Overload Shots . | . . . . . . Overflow Damage . | . . . . . . Projectiles . | . . . . . . Explosions . | . . . . . . Melee . | . . . . . . Knockbacks . | . . . . . . Impact . | . . . . . . Kinetic . | . . . . . . Secondary . | . . . . . . Self-Inflicted Damage . | . . . . . . Shots . | . . . . . . Rammed 5 | . . 3 1 1 . Targets Rammed 7 | . 1 4 1 1 . Kicked 1 | . 1 . . . . Crushed 1 | . . 1 . . . Highest Temperature 263 | . 27 263 122 185 24 Average Temperature 68 | . 11 118 32 52 21 Received Heat Transfer 1467 | . 12 195 681 543 36 Effects 1 | . . 1 . . . Energy Bleed 1 | . . 1 . . . Siege Activations . | . . . . . . Robots Corrupted . | . . . . . . Combat Hostiles . | . . . . . . Parts Fried . | . . . . . . Impact Corruptions . | . . . . . . Robots Melted 1 | . . 1 . . . Combat Hostiles 1 | . . 1 . . . Parts Melted 5 | . . 3 . 2 . Heat Transferred 2701 | . 370 407 . 1850 74 Parts Sabotaged . | . . . . . . Parts Stolen . | . . . . . . Parts Stripped . | . . . . . . Power Chain Reactions . | . . . . . . Missiles Intercepted . | . . . . . . Alert | -11 -10 -10 -9 -9 -9 ------- Run | Jun Mat Min Mat Sto Gar Peak Influence 405 | . 47 145 233 405 18 Initial 56 | . . 18 . 56 3 Average 83 | . 21 35 80 151 15 Maximum Alert Level 2 | . . . 1 2 . Low Security (%) 87 | 100 100 100 95 65 100 Level 1 12 | . . . 4 33 . Level 2 . | . . . . . . Level 3 . | . . . . . . Level 4 . | . . . . . . Level 5 . | . . . . . . High Security . | . . . . . . Max Security . | . . . . . . Squads Dispatched 7 | . 2 . . 5 . Investigation 5 | . 1 . . 4 . Extermination . | . . . . . . Reinforcement 2 | . 1 . . 1 . Assault . | . . . . . . Garrison . | . . . . . . Intercept . | . . . . . . Searches Triggered . | . . . . . . Construction Impeded . | . . . . . . Haulers Reinforced . | . . . . . . Active Scanning Responses . | . . . . . . Cargo Convoy Interrupts . | . . . . . . Stealth | -11 -10 -10 -9 -9 -9 --------- Run | Jun Mat Min Mat Sto Gar Distress Signals 6 | . . . 1 5 . Communications Jammed . | . . . . . . Distress Signals . | . . . . . . Times Spotted 60 | . 2 13 14 30 1 Peak Tracking Total 6 | . 1 6 6 5 1 Tactical Retreats 1 | . . . 1 . . Traps | -11 -10 -10 -9 -9 -9 ------- Run | Jun Mat Min Mat Sto Gar Traps Triggered 7 | . 3 . 2 2 . Indirectly . | . . . . . . Trap Hack Attempts . | . . . . . . Triggered . | . . . . . . Disarmed . | . . . . . . Reprogrammed . | . . . . . . Reused . | . . . . . . Traps Extracted . | . . . . . . Installed . | . . . . . . Triggered . | . . . . . . Machines | -11 -10 -10 -9 -9 -9 ---------- Run | Jun Mat Min Mat Sto Gar Machines Disabled 1 | . . . . 1 . Max in Single Turn 1 | . . . . 1 . Machines Repaired . | . . . . . . Machines Sabotaged . | . . . . . . Overloaded Fab Kills . | . . . . . . Hacking | -11 -10 -10 -9 -9 -9 --------- Run | Jun Mat Min Mat Sto Gar Machines Accessed 14 | . 3 1 1 9 . Terminals 11 | . 3 . 1 7 . Fabricators . | . . . . . . Repair Stations . | . . . . . . Recycling Units 1 | . . . . 1 . Scanalyzers . | . . . . . . Garrison Access 1 | . . . . 1 . Total Hacks 31 | . 7 1 3 20 . Successful 18 | . 4 1 2 11 . Failed 13 | . 3 . 1 9 . Catastrophic . | . . . . . . Database Lockouts . | . . . . . . Manual 19 | . 4 . 2 13 . Terminals 28 | . 7 . 3 18 . Fabricators . | . . . . . . Repair Stations . | . . . . . . Recycling Units 1 | . . . . 1 . Scanalyzers . | . . . . . . Garrison Access 1 | . . . . 1 . Terminal Hacks 14 | . 4 1 2 7 . Robot Analysis 3 | . 3 . . . . Open Door 3 | . . 1 . 2 . Branch Access Points 2 | . 1 . 1 . . Terminal Index 1 | . . . . 1 . Alert Level 1 | . . . . 1 . Unreport Threat 2 | . . . . 2 . Hauler Manifests 1 | . . . 1 . . Zone Layout 1 | . . . . 1 . Fabricator Hacks . | . . . . . . Repair Station Hacks . | . . . . . . Recycling Unit Hacks . | . . . . . . Scanalyzer . | . . . . . . Garrison Access Hacks 1 | . . . . 1 . Unlock Access 1 | . . . . 1 . Unauthorized Hacks 3 | . . . . 3 . Terminals 2 | . . . . 2 . Botnet 2 | . . . . 2 . Fabricators . | . . . . . . Repair Stations . | . . . . . . Recycling Units 1 | . . . . 1 . Tunnel 1 | . . . . 1 . Scanalyzers . | . . . . . . Garrison Access . | . . . . . . Data Cores Recovered . | . . . . . . Used . | . . . . . . Hacking Detections 10 | . 3 . 1 6 . Full Trace Events 2 | . . . . 2 . Feedback Events . | . . . . . . Feedback Blocked . | . . . . . . Robot Schematics Acquired . | . . . . . . Robots Built . | . . . . . . Authchips . | . . . . . . Time . | . . . . . . Total Robot Build Rating . | . . . . . . Part Schematics Acquired . | . . . . . . Parts Built . | . . . . . . Authchips . | . . . . . . Time . | . . . . . . Total Part Build Rating . | . . . . . . Parts Repaired . | . . . . . . Time . | . . . . . . Parts Recycled . | . . . . . . Recycled Matter . | . . . . . . Retrieved Matter . | . . . . . . Retrieved Components . | . . . . . . Parts Scanalyzed . | . . . . . . Part Schematics Acquired . | . . . . . . Parts Damaged . | . . . . . . Bothacking | -11 -10 -10 -9 -9 -9 ------------ Run | Jun Mat Min Mat Sto Gar Used RIF Installer . | . . . . . . Robots Hacked . | . . . . . . Non-combat . | . . . . . . Combat . | . . . . . . Robot Hacks Applied . | . . . . . . Relay Couplers Released . | . . . . . . Fabnet Peak Effective % . | . . . . . . Robots Rewired . | . . . . . . Allies Hacked . | . . . . . . Hacks Repelled . | . . . . . . Allies | -11 -10 -10 -9 -9 -9 -------- Run | Jun Mat Min Mat Sto Gar Total Allies 1 | . . 1 . . . Largest Group 1 | . . 1 . . . Highest-Rated Group 31 | . . 31 . . . Highest-Rated Ally 31 | . . 31 . . . Total Orders . | . . . . . . Ally Attacks . | . . . . . . Total Damage . | . . . . . . Kills . | . . . . . . Allies Corrupted . | . . . . . . Allies Melted . | . . . . . . Intel | -11 -10 -10 -9 -9 -9 ------- Run | Jun Mat Min Mat Sto Gar Robot Analysis Total 3 | . 3 . . . . Derelict Logs Recovered 1 | . . 1 . . . Drone Launches . | . . . . . . Drone Recoveries . | . . . . . . Exploration | -11 -10 -10 -9 -9 -9 ------------- Run | Jun Mat Min Mat Sto Gar Turns Passed 3905 | 3 308 1482 745 1361 6 Spaces Moved 1235 | 1 205 464 222 343 . Core 1 | . 1 . . . . Treads 920 | . . 355 222 343 . Legs 314 | 1 204 109 . . . Wheels . | . . . . . . Hover . | . . . . . . Flight . | . . . . . . Fastest Speed 120 | 120 120 120 240 240 . Average Speed 242 | 120 120 288 240 255 . Slowest Speed 480 | 120 250 400 320 480 . Overloaded Moves . | . . . . . . Propulsion Burnouts . | . . . . . . Robots Hopped . | . . . . . . Cave-ins Triggered . | . . . . . . Exploration Rate (%) 35 | 2 42 92 18 58 2 Regions Visited 5 Branch Regions 2 Pre-discovered Areas 1 | . . . . 1 . Known Exits Taken 3 | . 1 . 1 1 . Unknown Exits Taken 2 | 1 . 1 . . . Scrap Searched 1 | . . 1 . . . Spaces Dug . | . . . . . . Terrain Destroyed . | . . . . . . Melee . | . . . . . . Projectile . | . . . . . . AOE . | . . . . . . Terrain Rammed . | . . . . . . Walls Destroyed . | . . . . . . Machines Disabled . | . . . . . . Actions | -11 -10 -10 -9 -9 -9 --------- Run | Jun Mat Min Mat Sto Gar Total 1820 | 4 241 532 325 714 4 Wait 289 | . 4 7 8 270 . Move 1230 | . 204 463 221 342 . Hop . | . . . . . . Pick Up 43 | . 7 8 14 14 . Fast Attach 21 | . 9 1 7 4 . Attach 23 | 1 . 4 13 3 2 Detach 7 | . . 2 3 2 . Swap 14 | . . 7 2 5 . Drop 25 | 3 5 3 2 12 . Fire 161 | . 11 33 54 61 2 Melee . | . . . . . . Ram . | . . . . . . Kick 1 | . 1 . . . . Crush 6 | . . 4 1 1 . Escape Stasis . | . . . . . . Rewire . | . . . . . . Trap . | . . . . . . Miscellaneous . | . . . . . . Route ------- -11/Junkyard -10/Materials (discovered 3 exits: *Mat / *Min x2) -10/Mines (discovered 2 exits: *Mat x2) -9/Materials (discovered 4 exits: [*Mat] / Min / *Sto x2) -9/Storage -9/Garrison History --------- Turn | Location | Event 4 | -11/Junkyard | Discovered new exit (range 0) 4 | -11/Junkyard | Entered Materials 174 | -10/Materials | Identified exit to Mines 206 | -10/Materials | Discovered new exit (range 9) 309 | -10/Materials | Build established: Mutant 312 | -10/Materials | Entered Mines 333 | -10/Mines | Met a Derelict bent on vengeance 423 | -10/Mines | Discovered new exit (range 5) 457 | -10/Mines | Learned Materials security intel 788 | -10/Mines | Found the Drone Emporium 803 | -10/Mines | Found Prototype Device 1096 | -10/Mines | Received a Mining Laser from a helpful Derelict 1453 | -10/Mines | Core integrity fell below 50% 1647 | -10/Mines | Discovered new exit (range 6) 1794 | -10/Mines | Entered Materials 1794 | -9/Materials | Evolved 2 slots: Propulsion x1, Utility x1 1795 | -9/Materials | Identified Bomb Drone Bay 1976 | -9/Materials | Identified exit to Mines 1976 | -9/Materials | Identified exit to Storage 2105 | -9/Materials | Lost 7 parts (2p2n1u2w) 2169 | -9/Materials | Core integrity fell below 50% 2367 | -9/Materials | Discovered new exit (range 8) 2426 | -9/Materials | Build established: Scavenger-Mutant 2539 | -9/Materials | Entered Storage 3667 | -9/Storage | Core integrity fell below 20% 3706 | -9/Storage | Lost 4 parts (3n1u) 3884 | -9/Storage | Identified exit to Garrison 3900 | -9/Storage | Entered Garrison 3906 | -9/Garrison | Destroyed by Y-45 Defender with Heavy Assault Rifle Last Messages --------------- 03823_ R-06 Scavenger collects Imp. Medium Laser. 03835_ Connecting with Door Terminal... >>Open(Door) Sealed Heavy Doors opened. 03835_ Dropped Mining Laser. 03842_ Acquired Drone Bay. 03862_ Triggered Shock Trap. 03862_ The floor emits a surge of raw power. 03862_ System corrupted (+1). 03865_ System corrupted: FCS attempts to trigger Adv. Beam Cannon. 03865_ System corrupted: Adv. Beam Cannon misfires. 03884_ Connecting with Garrison Access... >>Unlock Access door unlocked. 03884_ EXIT=UNLOCKED: GARRISON 03899_ Compression Vault explodes. 03899_ Lgt. Treads destroyed. LOCATION=GARRISON GOAL=ESCAPE 03903_ Critical hit (Burn: +37). Map ----- +----------------------------------------------------+ | ?????????????????????????????????????????????????? | | ?????????????????????????????????????????????????? | | ?????????????????????????????????????????????????? | | ?????????????????????????????????????????????????? | | ?????????????????????????????????????????????????? | | ?????????????????????????????????????????????????? | | ?????????????????????????????????????????????????? | | ?????????????????????????????????????????????????? | | ?????????????????????????????????????????????????? | | ?????????????????????????????????????????????????? | | ?????????????????????????????????????????????????? | | ?????????????????????#???????????????????????????? | | ?????????????????????# ??????????????????????????? | | ?????????????????????# ??????????????????????????? | | ?????????????????????# ??????????????????????????? | | ?????????????????????# ??????????????????????????? | | ?????????????????????# ?????????????????????????? | | ?????????????????????# ?????????????????????????? | | ?????????????????????# ?????????????????????????? | | ?????????????????????# ?????????????????????????? | | ?????????????????????# ????????????????????????? | | ?????????????????????# ????????????????????????? | | ?????????????????????# ????????????????????????? | | ?????????????????????# ###?????????????????????? | | ????????????????????## #?????????????????????? | | ????????????????????#Y @ #?????????????????????? | | ????????????????????## #?????????????????????? | | ?????????????????????#######?????????????????????? | | ?????????????????????????????????????????????????? | | ?????????????????????????????????????????????????? | | ?????????????????????????????????????????????????? | | ?????????????????????????????????????????????????? | | ?????????????????????????????????????????????????? | | ?????????????????????????????????????????????????? | | ?????????????????????????????????????????????????? | | ?????????????????????????????????????????????????? | | | | | | | | | | | | | | | | | | | | | | | | | | | | | +----------------------------------------------------+ Best States ------------- Heat Dissipation 52 Energy Generation 18 Energy Capacity 265 Matter Stores 300 Matter Capacity 300 Sight Range 16 Terrain Scan Range 14 Terrain Scan Density 10 Armor Coverage 150 Evasion (%) 55 Recoil Reduction 3 Item Schematics ----------------- None Robot Schematics ------------------ None Fabricated ------------ Nothing Alien Tech Used ----------------- None Achievements -------------- None Challenges ------------ None Game ------ Seed DamperElectronHumpback Manual? 0 Play Time 00:18:01 Cumulative 219.9 hours Start 2023.05.25 @ 18:46:43 End 2023.05.25 @ 19:04:55 Sessions 1 Manual Loads 0 Difficulty Rogue Special Mode None Game No. 301 Rogue 301 Adventurer 0 Explorer 0 Win Type - Total 7 Types 6/0/0/1/0/0/0/0/0 Lore% 82 Gallery% 86 Achievement% 69 Wizard Run 0 Options --------- ASCII 0 Keyboard 0 Movement Numpad Keybinds 0 Fullscreen 2 Font 18/SmallcapsGlow Map View 76x50 Tactical HUD 1 Map Filters NONE Filters NONE Steam 1 RUN: 63df2b6c-d174-46d0-a049-5a0670d8726d